{"text_format":"1","workbook":"xlsx","n_sheets":4,"sheets":["解説","CC_Loop","CC_Flow","PC_Flow"],"not_rendered":{"charts":0,"images":0,"macros":1,"external_links":0,"defined_names":0,"comments":0,"pivot_tables":0},"unopened":[],"bounds":{"document_bytes":16777216,"sheet_cells":100000,"rows_first":2000,"rows_last":500,"rows_between":2000,"halvings":0,"cell_chars":16384,"cell_head_chars":4096},"cells_cut":0,"cells_raw":0,"read":"whole","date_system":"1900"}

{"sheet":"解説","index":0,"n_rows":16,"n_cols":5,"rows_kept":16,"cut":false,"hidden":false,"merged":[]}
[]
[null,"対向流システムのシミュレーション"]
[null,null,"1)　シートの説明"]
[null,null,null,"CC_Loop","対向流によって濃度コントロール後に分泌するしくみ"]
[null,null,null,"CC_Flow","対向流による物質交換機構"]
[null,null,null,"PC_Flow","平行流による物質交換機構"]
[]
[null,null,"2)　使い方"]
[null,null,null,"To intialize:","AS列以降に記された数値（初期値）に置換する作業の実施"]
[null,null,null,"Automatic run:","流れのシミュレーション実施（２０回）"]
[null,null,null,"Single run:","流れのシミュレーション実施（１回のみ）"]
[]
[null,null,"3)　プログラム作動原理"]
[null,null,null,"A列に系への入力値・拡散（⇋）の速度を入力して条件設定"]
[null,null,null,"C列にAE列からの数値を元に演算（隣接セルからの計算）して記入"]
[null,null,null,"C列のデータをAE列データにコピー"]

{"sheet":"CC_Loop","index":1,"n_rows":31,"n_cols":55,"rows_kept":31,"cut":false,"hidden":false,"merged":[[1,34,1,36],[1,48,1,50],[0,7,1,11]]}
["Diffusion rate",null,null,null,null,null,null,{"$f":"AI2+(AJ3-AI2)*$A$10","v":1.4306883363643497},null,null,null,null,null,null,null,null,null,null,null,null,null,null,null,null,null,null,null,null,null,null,null,null,null,1.4176611334258205,null,null,null,null,null,null,null,null,null,null,"Initial"]
[0.15,null,null,null,null,null,null,null,null,null,null,null,null,null,null,null,null,null,null,null,null,null,null,null,null,null,null,null,null,null,null,null,null,null,null,null,null,null,null,null,null,null,null,null,null,null,null,null,0]
["Input",null,null,null,{"$f":"AE4","v":9.0031099845525357},{"$f":"AE3","v":9.3296351184761974},8.8484595620714632,9.0424697210700646,{"$f":"AH3","v":8.7243793243942207},{"$f":"AI3-(AJ3-AI2)*$A$10","v":7.3152926993644574},{"$f":"AJ3","v":7.1534416818217483},{"$f":"AK3","v":7.0883056671291023},{"$f":"AL3","v":6.9943750435791614},6.8911137336230261,6.8216078782920695,null,null,null,null,null,null,null,null,null,null,null,null,null,null,null,9.3296351184761974,8.8484595620714632,9.0424697210700646,8.7243793243942207,8.745981035728807,7.1534416818217483,7.0883056671291023,6.9943750435791614,6.8911137336230261,6.8216078782920695,6.6897400121754957,null,null,null,0,0,0,0,0,0,0,0,0,0,0]
[37,null,null,null,{"$f":"AE5","v":9.5516616083768415},null,null,null,null,null,null,null,null,null,{"$f":"AO3","v":6.6897400121754957},null,null,null,null,null,null,null,null,null,null,null,null,null,null,null,9.0031099845525357,null,null,null,null,null,null,null,null,null,6.6587306966827109,null,null,null,0,null,null,null,null,null,null,null,null,null,0]
[null,null,null,null,9.21965342946379,null,null,null,null,null,null,null,null,null,{"$f":"AO4","v":6.6587306966827109},null,null,null,null,null,null,null,null,null,null,null,null,null,null,null,9.5516616083768415,null,null,null,null,null,null,null,null,null,6.4806308083125028,null,null,null,0,null,null,null,null,null,null,null,null,null,0]
[null,null,null,null,{"$f":"AF6","v":9.7057792202664253},{"$f":"AG6","v":9.4738358743752578},9.8300848890743175,9.7243168869279266,{"$f":"AI7","v":9.9583181850176548},null,{"$f":"AL6","v":6.1522523948085821},{"$f":"AM6","v":6.2916163037865003},6.2952953098313147,{"$f":"AO6","v":6.4938240780653702},6.4806308083125028,null,null,null,null,null,null,null,null,null,null,null,null,null,null,null,9.21965342946379,9.7057792202664253,9.4738358743752578,9.8300848890743175,9.7243168869279266,null,6.0817616520827515,6.1522523948085821,6.2916163037865003,6.2952953098313147,6.4938240780653702,null,null,null,0,0,0,0,0,null,0,0,0,0,0]
["Output",null,null,null,null,null,null,null,{"$f":"AI8-(AI8+AI7-AK7-AK6)*$A$2","v":9.948377646281573},"⇋",{"$f":"AK6+(AI7+AI8-AK7-AK6)*$A$2","v":7.2601083974719858},null,null,null,null,null,null,null,null,null,null,null,null,null,null,null,null,null,null,null,null,null,null,null,9.9583181850176548,"⇋",7.1476359553441497,null,null,null,null,null,null,null,null,null,null,null,0,null,0]
[{"$f":"O27","v":30.860883115313168},null,null,null,null,null,null,null,{"$f":"AI9-(AI9+AI8-AK8-AK7)*$A$2","v":11.272264914132309},"⇋",{"$f":"AK7+(AI8+AI9-AK8-AK7)*$A$2","v":8.3698810865271103},null,null,null,null,null,null,null,null,null,null,null,null,null,null,null,null,null,null,null,null,null,null,null,11.126724391670807,"⇋",8.32529760708886,null,null,null,null,null,null,null,null,null,null,null,0,null,0]
["Secretion",null,null,null,null,null,null,null,12.553202749982585,"⇋",9.6070729895235889,null,null,null,null,{"$f":"MAX(E3:O27)","v":37},"Max",null,null,null,null,null,null,null,null,null,null,null,null,null,null,null,null,null,12.49451004531527,"⇋",9.4590213544122008,null,null,null,null,37,null,null,null,null,null,null,0,null,0]
[0.2,null,null,null,null,null,null,null,13.931579438994063,"⇋",10.789068485562991,null,null,null,null,{"$f":"(P9*5+P14)/6","v":31.858708732468099},null,null,null,null,null,null,null,null,null,null,null,null,null,null,null,null,null,null,13.834978132417314,"⇋",10.770602473811364,null,null,null,null,34.258461472349566,null,null,null,null,null,null,0,null,0]
["Storage",null,null,null,null,null,null,null,15.34224339816007,"⇋",12.154774880479284,null,null,null,null,{"$f":"(P9*4+P14*2)/6","v":26.717417464936194},null,null,null,null,null,null,null,null,null,null,null,null,null,null,null,null,null,null,15.261626570144854,"⇋",11.989623856708679,null,null,null,null,31.516922944699132,null,null,null,null,null,null,0,null,0]
[{"$f":"H1","v":1.4306883363643497},null,null,null,null,null,null,null,16.801633327791901,"⇋",13.423632813013073,null,null,null,null,{"$f":"(P9+P14)/2","v":21.576126197404292},null,null,null,null,null,null,null,null,null,null,null,null,null,null,null,null,null,null,16.72641580482799,"⇋",13.412374523519647,null,null,null,null,28.775384417048699,null,null,null,null,null,null,0,null,0]
[null,null,null,null,null,null,null,null,18.31464691120464,"⇋",14.893656141129267,null,null,null,null,{"$f":"(P9+P14*5)/6","v":11.293543662340484},null,null,null,null,null,null,null,null,null,null,null,null,null,null,null,null,null,null,18.235642284096297,"⇋",14.743985505326783,null,null,null,null,23.292307361747831,null,null,null,null,null,null,0,null,0]
[null,null,null,null,null,null,null,null,19.860131149358903,"⇋",16.27338959313596,null,null,null,null,{"$f":"MIN(E3:O27)","v":6.1522523948085821},"Min",null,null,null,null,null,null,null,null,null,null,null,null,null,null,null,null,null,19.795928528814258,"⇋",16.245451008594369,null,null,null,null,20.550768834097397,null,null,null,null,null,null,0,null,0]
[null,null,null,null,null,null,null,null,21.45701112669758,"⇋",17.815827696359179,null,null,null,null,null,null,null,null,null,null,null,null,null,null,null,null,null,null,null,null,null,null,null,21.389535237168079,"⇋",17.702294124604027,null,null,null,null,null,null,null,null,null,null,null,0,null,0]
[null,null,null,null,null,null,null,null,23.082130054343938,"⇋",19.314489603021425,null,null,null,null,null,null,null,null,null,null,null,null,null,null,null,null,null,null,null,null,null,null,null,23.02738781446239,"⇋",19.271449366503713]
[null,null,null,null,null,null,null,null,24.746943709192223,"⇋",20.920315770452685,null,null,null,null,null,null,null,null,null,null,null,null,null,null,null,null,null,null,null,null,null,null,null,24.694325532761336,"⇋",20.826243586405674]
[null,null,null,null,null,null,null,null,26.442354042566855,"⇋",22.506260533337926,null,null,null,null,null,null,null,null,null,null,null,null,null,null,null,null,null,null,null,null,null,null,null,26.395810113141195,"⇋",22.491824536686281]
[null,null,null,null,null,null,null,null,28.151049645460773,"⇋",24.206318200393358,null,null,null,null,null,null,null,null,null,null,null,null,null,null,null,null,null,null,null,null,null,null,null,28.122370989499107,"⇋",24.0661320039335]
[null,null,null,null,null,null,null,null,29.914306664310285,"⇋",25.796228972004457,null,null,null,null,null,null,null,null,null,null,null,null,null,null,null,null,null,null,null,null,null,null,null,29.865543309167851,"⇋",25.909835150475885]
[null,null,null,null,null,null,null,null,31.641023988479517,"⇋",27.676420367226655,null,null,null,null,null,null,null,null,null,null,null,null,null,null,null,null,null,null,null,null,null,null,null,31.644403632381241,"⇋",27.364942908797168,null,null,null,null,null,null,null,null,null,null,null,0,null,0]
[null,null,null,null,null,null,null,null,33.449737491861498,"⇋",29.127425418746892,null,null,null,null,null,null,null,null,null,null,null,null,null,null,null,null,null,null,null,null,null,null,null,33.407609205230287,"⇋",29.505002898579505,null,null,null,null,null,null,null,null,null,null,null,0,null,0]
[null,null,null,null,null,null,null,null,35.202873758656729,"⇋",31.302129139922773,null,null,null,null,null,null,null,null,null,null,null,null,null,null,null,null,null,null,null,null,null,null,null,35.212220001811225,"⇋",30.726375494276603,null,null,null,null,null,null,null,null,null,null,null,0,null,0]
[null,null,null,null,{"$f":"AE25","v":37},{"$f":"AE24","v":37},37,37,{"$f":"AH24","v":37},null,{"$f":"AK23","v":30.726375494276603},{"$f":"AK24","v":31.342384455332887},{"$f":"AL24","v":30.635713440805475},31.254275765150737,30.693375933710602,null,null,null,null,null,null,null,null,null,null,null,null,null,null,null,37,37,37,37,37,null,31.342384455332887,30.635713440805475,31.254275765150737,30.693375933710602,31.040420001207412,null,null,null,0,0,0,0,0,null,0,0,0,0,0]
[null,null,null,null,{"$f":"AE26","v":37},null,null,null,null,null,null,null,null,null,{"$f":"AO24","v":31.040420001207412},null,null,null,null,null,null,null,null,null,null,null,null,null,null,null,37,null,null,null,null,null,null,null,null,null,30.802941509363666,null,null,null,0,null,null,null,null,null,null,null,null,null,0]
[null,null,null,null,37,null,null,null,null,null,null,null,null,null,{"$f":"AO25","v":30.802941509363666},null,null,null,null,null,null,null,null,null,null,null,null,null,null,null,37,null,null,null,null,null,null,null,null,null,30.860883115313168,null,null,null,0,null,null,null,null,null,null,null,null,null,0]
[null,null,null,null,{"$f":"A4","v":37},null,null,null,null,null,null,null,null,null,30.860883115313168,null,null,null,null,null,null,null,null,null,null,null,null,null,null,null,37,null,null,null,null,null,null,null,null,null,30.813595872860784,null,null,null,0,null,null,null,null,null,null,null,null,null,0]
[]
[null,null,null,null,null,"To intialize:",null,null,null,null,"Ctrl+Shft+I",null,null,null,null,null,null,null,null,null,null,null,null,null,null,null,null,null,null,null,null,"To intialize:",null,null,null,null,"Ctrl+Shft+I"]
[null,null,null,null,null,"Automatic run:",null,null,null,null,"Ctrl+Shft+A",null,null,null,null,null,null,null,null,null,null,null,null,null,null,null,null,null,null,null,null,"Automatic run:",null,null,null,null,"Ctrl+Shft+A"]
[null,null,null,null,null,"Single run:",null,null,null,null,"Ctrl+Shft+L"]

{"sheet":"CC_Flow","index":2,"n_rows":31,"n_cols":55,"rows_kept":31,"cut":false,"hidden":false,"merged":[]}
["Diffusion rate",null,null,null,null,null,null,null,null,null,null,null,null,null,null,null,null,null,null,null,null,null,null,null,null,null,null,null,null,null,null,null,null,null,null,null,null,null,null,null,null,null,null,null,"Initial"]
[0.15]
["Input A",null,null,null,{"$f":"AE4","v":9.8438058279872518},null,null,null,null,null,null,null,null,null,{"$f":"A6","v":5},null,null,null,null,null,null,null,null,null,null,null,null,null,null,null,9.827012520199796,null,null,null,null,null,null,null,null,null,5,null,null,null,0,0,0,0,0,0,0,0,0,0,0]
[37,null,null,null,{"$f":"AE5","v":9.8604188152813244},null,null,null,null,null,null,null,null,null,{"$f":"AO3","v":5},null,null,null,null,null,null,null,null,null,null,null,null,null,null,null,9.8438058279872518,null,null,null,null,null,null,null,null,null,5,null,null,null,0,null,null,null,null,null,null,null,null,null,0]
["Input B",null,null,null,9.8759384417690175,null,null,null,null,null,null,null,null,null,{"$f":"AO4","v":5},null,null,null,null,null,null,null,null,null,null,null,null,null,null,null,9.8604188152813244,null,null,null,null,null,null,null,null,null,5,null,null,null,0,null,null,null,null,null,null,null,null,null,0]
[5,null,null,null,{"$f":"AF6","v":9.8911555906288218},{"$f":"AG6","v":9.9055018614257815},9.9194473217170245,9.9326953388280188,{"$f":"AI7","v":9.9454898860098613},null,{"$f":"AL6","v":5},{"$f":"AM6","v":5},5,{"$f":"AO6","v":5},5,null,null,null,null,null,null,null,null,null,null,null,null,null,null,null,9.8759384417690175,9.8911555906288218,9.9055018614257815,9.9194473217170245,9.9326953388280188,null,5,5,5,5,5,null,null,null,0,0,0,0,0,null,0,0,0,0,0]
["Output A",null,null,null,null,null,null,null,{"$f":"AI8-(AI8+AI7-AK7-AK6)*$A$2","v":9.9577116441781577},"⇋",{"$f":"AK6+(AI7+AI8-AK7-AK6)*$A$2","v":6.4860397162359495},null,null,null,null,null,null,null,null,null,null,null,null,null,null,null,null,null,null,null,null,null,null,null,9.9454898860098613,"⇋",6.4823098048509724,null,null,null,null,null,null,null,null,null,null,null,0,null,0]
[{"$f":"E3","v":9.8438058279872518},null,null,null,null,null,null,null,{"$f":"AI9-(AI9+AI8-AK8-AK7)*$A$2","v":11.459066719475278},"⇋",{"$f":"AK7+(AI8+AI9-AK8-AK7)*$A$2","v":7.9741430717481983},null,null,null,null,null,null,null,null,null,null,null,null,null,null,null,null,null,null,null,null,null,null,null,11.443751360414108,"⇋",7.9667864292874686,null,null,null,null,null,null,null,null,null,null,null,0,null,0]
["Output B",null,null,null,null,null,null,null,12.968952107058051,"⇋",9.4663547033526267,null,null,null,null,{"$f":"MAX(E3:O27)","v":37},"Max",null,null,null,null,null,null,null,null,null,null,null,null,null,null,null,null,null,12.950899986372503,"⇋",9.4555121111071827,null,null,null,null,37,null,null,null,null,null,null,0,null,0]
[{"$f":"O27","v":31.351196947092113},null,null,null,null,null,null,null,14.488789981952724,"⇋",10.964557677974376,null,null,null,null,{"$f":"(P9*5+P14)/6","v":31.666666666666668},null,null,null,null,null,null,null,null,null,null,null,null,null,null,null,null,null,null,14.468520381123209,"⇋",10.950540039721316,null,null,null,null,31.666666666666668,null,null,null,null,null,null,0,null,0]
[null,null,null,null,null,null,null,null,16.020046808424834,"⇋",12.470601947019823,null,null,null,null,{"$f":"(P9*4+P14*2)/6","v":26.333333333333332},null,null,null,null,null,null,null,null,null,null,null,null,null,null,null,null,null,null,15.997835548819918,"⇋",12.453658176165234,null,null,null,null,26.333333333333332,null,null,null,null,null,null,0,null,0]
[null,null,null,null,null,null,null,null,17.563401600853862,"⇋",13.985990936478894,null,null,null,null,{"$f":"(P9+P14)/2","v":21},null,null,null,null,null,null,null,null,null,null,null,null,null,null,null,null,null,null,17.540108715723338,"⇋",13.966633165301234,null,null,null,null,21,null,null,null,null,null,null,0,null,0]
[null,null,null,null,null,null,null,null,19.120043267135365,"⇋",15.512228430330993,null,null,null,null,{"$f":"(P9+P14*5)/6","v":10.333333333333334},null,null,null,null,null,null,null,null,null,null,null,null,null,null,null,null,null,null,19.095734361167519,"⇋",15.490771294499689,null,null,null,null,10.333333333333334,null,null,null,null,null,null,0,null,0]
[null,null,null,null,null,null,null,null,20.689760710777563,"⇋",17.05028221104957,null,null,null,null,{"$f":"MIN(E3:O27)","v":5},"Min",null,null,null,null,null,null,null,null,null,null,null,null,null,null,null,null,null,20.665638532165126,"⇋",17.027399421327011,null,null,null,null,5,null,null,null,null,null,null,0,null,0]
[null,null,null,null,null,null,null,null,22.273384158137137,"⇋",18.60117054315279,null,null,null,null,null,null,null,null,null,null,null,null,null,null,null,null,null,null,null,null,null,null,null,22.249271627327442,"⇋",18.577220007124815]
[null,null,null,null,null,null,null,null,23.869873556399366,"⇋",20.165248773977869,null,null,null,null,null,null,null,null,null,null,null,null,null,null,null,null,null,null,null,null,null,null,null,23.847155279962916,"⇋",20.140979150403499]
[null,null,null,null,null,null,null,null,25.479514635125682,"⇋",21.742925696222741,null,null,null,null,null,null,null,null,null,null,null,null,null,null,null,null,null,null,null,null,null,null,null,25.457902323252419,"⇋",21.718740714998891]
[null,null,null,null,null,null,null,null,27.100682748932819,"⇋",23.333948562469317,null,null,null,null,null,null,null,null,null,null,null,null,null,null,null,null,null,null,null,null,null,null,null,27.081461180944924,"⇋",23.310558745879774]
[null,null,null,null,null,null,null,null,28.732946099300946,"⇋",24.9380373286393,null,null,null,null,null,null,null,null,null,null,null,null,null,null,null,null,null,null,null,null,null,null,null,28.715890596403245,"⇋",24.915899314187104]
[null,null,null,null,null,null,null,null,30.374356999390635,"⇋",26.554396237323981,null,null,null,null,null,null,null,null,null,null,null,null,null,null,null,null,null,null,null,null,null,null,null,30.360424682060472,"⇋",26.534066469488369,null,null,null,null,null,null,null,null,null,null,null,0,null,0]
[null,null,null,null,null,null,null,null,32.023756760117195,"⇋",28.182036311626049,null,null,null,null,null,null,null,null,null,null,null,null,null,null,null,null,null,null,null,null,null,null,null,32.012853922527512,"⇋",28.164048441042816,null,null,null,null,null,null,null,null,null,null,null,0,null,0]
[null,null,null,null,null,null,null,null,33.67904551724726,"⇋",29.819760943257219,null,null,null,null,null,null,null,null,null,null,null,null,null,null,null,null,null,null,null,null,null,null,null,33.671726602254878,"⇋",29.804352832577703,null,null,null,null,null,null,null,null,null,null,null,0,null,0]
[null,null,null,null,null,null,null,null,35.338505981904369,"⇋",{"$f":"AK22+(AI23+AI24-AK23-AK22)*$A$2","v":31.465846850673337},null,null,null,null,null,null,null,null,null,null,null,null,null,null,null,null,null,null,null,null,null,null,null,35.33475801946166,"⇋",31.453778399579729,null,null,null,null,null,null,null,null,null,null,null,0,null,0]
[null,null,null,null,{"$f":"AE25","v":37},{"$f":"AE24","v":37},37,37,{"$f":"AH24","v":37},null,{"$f":"AK23","v":31.453778399579729},{"$f":"AK24","v":31.44075374200272},{"$f":"AL24","v":31.427846204975801},31.413410349548748,31.399746841973002,null,null,null,null,null,null,null,null,null,null,null,null,null,null,null,37,37,37,37,37,null,31.44075374200272,31.427846204975801,31.413410349548748,31.399746841973002,31.38361260362468,null,null,null,0,0,0,0,0,null,0,0,0,0,0]
[null,null,null,null,{"$f":"AE26","v":37},null,null,null,null,null,null,null,null,null,{"$f":"AO24","v":31.38361260362468},null,null,null,null,null,null,null,null,null,null,null,null,null,null,null,37,null,null,null,null,null,null,null,null,null,31.36927714484337,null,null,null,0,null,null,null,null,null,null,null,null,null,0]
[null,null,null,null,37,null,null,null,null,null,null,null,null,null,{"$f":"AO25","v":31.36927714484337},null,null,null,null,null,null,null,null,null,null,null,null,null,null,null,37,null,null,null,null,null,null,null,null,null,31.351196947092113,null,null,null,0,null,null,null,null,null,null,null,null,null,0]
[null,null,null,null,{"$f":"$A$4","v":37},null,null,null,null,null,null,null,null,null,31.351196947092113,null,null,null,null,null,null,null,null,null,null,null,null,null,null,null,37,null,null,null,null,null,null,null,null,null,31.336141173856532,null,null,null,0.5,null,null,null,null,null,null,null,null,null,0]
[]
[null,null,null,null,null,"To intialize:",null,null,null,null,"Ctrl+Shft+F",null,null,null,null,null,null,null,null,null,null,null,null,null,null,null,null,null,null,null,null,"To intialize:",null,null,null,null,"Ctrl+Shft+F"]
[null,null,null,null,null,"Automatic run:",null,null,null,null,"Ctrl+Shft+G",null,null,null,null,null,null,null,null,null,null,null,null,null,null,null,null,null,null,null,null,"Automatic run:",null,null,null,null,"Ctrl+Shft+G"]
[null,null,null,null,null,"Single run:",null,null,null,null,"Ctrl+Shft+H"]

{"sheet":"PC_Flow","index":3,"n_rows":31,"n_cols":55,"rows_kept":31,"cut":false,"hidden":false,"merged":[]}
["Diffusion rate",null,null,null,null,null,null,null,null,null,null,null,null,null,null,null,null,null,null,null,null,null,null,null,null,null,null,null,null,null,null,null,null,null,null,null,null,null,null,null,null,null,null,null,"Initial"]
[0.15]
["Input A",null,null,null,{"$f":"A4","v":37},null,null,null,null,null,null,null,null,null,{"$f":"A6","v":5},null,null,null,null,null,null,null,null,null,null,null,null,null,null,null,37,null,null,null,null,null,null,null,null,null,5,null,null,null,0,0,0,0,0,0,0,0,0,0,0]
[37,null,null,null,{"$f":"AE3","v":37},null,null,null,null,null,null,null,null,null,{"$f":"AO3","v":5},null,null,null,null,null,null,null,null,null,null,null,null,null,null,null,37,null,null,null,null,null,null,null,null,null,5,null,null,null,0,null,null,null,null,null,null,null,null,null,0]
["Input B",null,null,null,{"$f":"AE4","v":37},null,null,null,null,null,null,null,null,null,{"$f":"AO4","v":5},null,null,null,null,null,null,null,null,null,null,null,null,null,null,null,37,null,null,null,null,null,null,null,null,null,5,null,null,null,0,null,null,null,null,null,null,null,null,null,0]
[5,null,null,null,37,{"$f":"AE6","v":37},{"$f":"AF6","v":37},37,{"$f":"AH6","v":37},null,{"$f":"AL6","v":5},{"$f":"AM6","v":5},5,{"$f":"AO6","v":5},5,null,null,null,null,null,null,null,null,null,null,null,null,null,null,null,37,37,37,37,37,null,5,5,5,5,5,null,null,null,0,0,0,0,0,null,0,0,0,0,0]
["Output A",null,null,null,null,null,null,null,{"$f":"AI6-(AI8+AI7-AK7-AK6)*$A$2","v":30.772783862352735},"⇋",{"$f":"AK6+(AI7+AI8-AK7-AK6)*$A$2","v":11.227216137647265},null,null,null,null,null,null,null,null,null,null,null,null,null,null,null,null,null,null,null,null,null,null,null,30.772783862351961,"⇋",11.227216137648039,null,null,null,null,null,null,null,null,null,null,null,0,null,0]
[{"$f":"E27","v":21.003558743057219},null,null,null,null,null,null,null,{"$f":"AI7-(AI9+AI8-AK8-AK7)*$A$2","v":26.969206526258763},"⇋",{"$f":"AK7+(AI8+AI9-AK8-AK7)*$A$2","v":15.030793473741237},null,null,null,null,null,null,null,null,null,null,null,null,null,null,null,null,null,null,null,null,null,null,null,26.969206526277837,"⇋",15.030793473722165,null,null,null,null,null,null,null,null,null,null,null,0,null,0]
["Output B",null,null,null,null,null,null,null,24.645985325702071,"⇋",17.354014674297932,null,null,null,null,{"$f":"MAX(E3:O27)","v":37},"Max",null,null,null,null,null,null,null,null,null,null,null,null,null,null,null,null,null,24.645985325713696,"⇋",17.354014674286304,null,null,null,null,37,null,null,null,null,null,null,0,null,0]
[{"$f":"O27","v":20.996441256942781},null,null,null,null,null,null,null,23.226964159670072,"⇋",18.773035840329928,null,null,null,null,{"$f":"(P9*5+P14)/6","v":31.666666666666668},null,null,null,null,null,null,null,null,null,null,null,null,null,null,null,null,null,null,23.226964159466554,"⇋",18.773035840533446,null,null,null,null,31.666666666666668,null,null,null,null,null,null,0,null,0]
[null,null,null,null,null,null,null,null,22.360227462394235,"⇋",19.639772537605765,null,null,null,null,{"$f":"(P9*4+P14*2)/6","v":26.333333333333332},null,null,null,null,null,null,null,null,null,null,null,null,null,null,null,null,null,null,22.360227462310682,"⇋",19.639772537689321,null,null,null,null,26.333333333333332,null,null,null,null,null,null,0,null,0]
[null,null,null,null,null,null,null,null,21.830825561501509,"⇋",20.169174438498494,null,null,null,null,{"$f":"(P9+P14)/2","v":21},null,null,null,null,null,null,null,null,null,null,null,null,null,null,null,null,null,null,21.830825563060891,"⇋",20.169174436939112,null,null,null,null,21,null,null,null,null,null,null,0,null,0]
[null,null,null,null,null,null,null,null,21.507467416553826,"⇋",20.492532583446177,null,null,null,null,{"$f":"(P9+P14*5)/6","v":10.333333333333334},null,null,null,null,null,null,null,null,null,null,null,null,null,null,null,null,null,null,21.507467416962033,"⇋",20.492532583037967,null,null,null,null,10.333333333333334,null,null,null,null,null,null,0,null,0]
[null,null,null,null,null,null,null,null,21.309960589840237,"⇋",20.690039410159763,null,null,null,null,{"$f":"MIN(E3:O27)","v":5},"Min",null,null,null,null,null,null,null,null,null,null,null,null,null,null,null,null,null,21.309960579728806,"⇋",20.690039420271194,null,null,null,null,5,null,null,null,null,null,null,0,null,0]
[null,null,null,null,null,null,null,null,21.189323605543652,"⇋",20.810676394456348,null,null,null,null,null,null,null,null,null,null,null,null,null,null,null,null,null,null,null,null,null,null,null,21.189323604392332,"⇋",20.810676395607665,null,null,null,null,null,null,null,null,null,null,null,0,null,0]
[null,null,null,null,null,null,null,null,21.115638648115006,"⇋",20.884361351884991,null,null,null,null,null,null,null,null,null,null,null,null,null,null,null,null,null,null,null,null,null,null,null,21.115638706054213,"⇋",20.884361293945787,null,null,null,null,null,null,null,null,null,null,null,0,null,0]
[null,null,null,null,null,null,null,null,21.070632027585543,"⇋",20.929367972414457,null,null,null,null,null,null,null,null,null,null,null,null,null,null,null,null,null,null,null,null,null,null,null,21.070632025348072,"⇋",20.929367974651932,null,null,null,null,null,null,null,null,null,null,null,0,null,0]
[null,null,null,null,null,null,null,null,21.043142061278413,"⇋",20.956857938721591,null,null,null,null,null,null,null,null,null,null,null,null,null,null,null,null,null,null,null,null,null,null,null,21.043141766374124,"⇋",20.956858233625876,null,null,null,null,null,null,null,null,null,null,null,0,null,0]
[null,null,null,null,null,null,null,null,21.026350810394586,"⇋",20.973649189605414,null,null,null,null,null,null,null,null,null,null,null,null,null,null,null,null,null,null,null,null,null,null,null,21.026350869034754,"⇋",20.973649130965246,null,null,null,null,null,null,null,null,null,null,null,0,null,0]
[null,null,null,null,null,null,null,null,21.016094903737695,"⇋",20.983905096262305,null,null,null,null,null,null,null,null,null,null,null,null,null,null,null,null,null,null,null,null,null,null,null,21.016096202086622,"⇋",20.983903797913378,null,null,null,null,null,null,null,null,null,null,null,0,null,0]
[null,null,null,null,null,null,null,null,21.009830329162398,"⇋",20.990169670837602,null,null,null,null,null,null,null,null,null,null,null,null,null,null,null,null,null,null,null,null,null,null,null,21.009829828772386,"⇋",20.990170171227614,null,null,null,null,null,null,null,null,null,null,null,0,null,0]
[null,null,null,null,null,null,null,null,21.006021096993951,"⇋",20.993978903006049,null,null,null,null,null,null,null,null,null,null,null,null,null,null,null,null,null,null,null,null,null,null,null,21.006016626530098,"⇋",20.993983373469906,null,null,null,null,null,null,null,null,null,null,null,0,null,0]
[null,null,null,null,null,null,null,null,21.003525350228678,"⇋",20.996474649771326,null,null,null,null,null,null,null,null,null,null,null,null,null,null,null,null,null,null,null,null,null,null,null,21.003528463356979,"⇋",20.996471536643025,null,null,null,null,null,null,null,null,null,null,null,0,null,0]
[null,null,null,null,{"$f":"AF24","v":21.003543270918207},21.003524296286876,21.003522977943817,{"$f":"AI24","v":21.003534955432087},{"$f":"AI23","v":21.003528463356979},null,{"$f":"AK23","v":20.996471536643025},{"$f":"AK24","v":20.996465044567913},{"$f":"AL24","v":20.996477022056183},20.996475703713124,20.996456729081793,null,null,null,null,null,null,null,null,null,null,null,null,null,null,null,21.003521470992794,21.003543270918207,21.003524296286876,21.003522977943817,21.003534955432087,null,20.996465044567913,20.996477022056183,20.996475703713124,20.996456729081793,20.996478529007206,null,null,null,0,0,0,0,0,null,0,0,0,0,0]
[null,null,null,null,{"$f":"AE24","v":21.003521470992794},null,null,null,null,null,null,null,null,null,{"$f":"AO24","v":20.996478529007206},null,null,null,null,null,null,null,null,null,null,null,null,null,null,null,21.003511763007175,null,null,null,null,null,null,null,null,null,20.996488236992825,null,null,null,0,null,null,null,null,null,null,null,null,null,0]
[null,null,null,null,{"$f":"AE25","v":21.003511763007175},null,null,null,null,null,null,null,null,null,{"$f":"AO25","v":20.996488236992825},null,null,null,null,null,null,null,null,null,null,null,null,null,null,null,21.003558743057219,null,null,null,null,null,null,null,null,null,20.996441256942781,null,null,null,0,null,null,null,null,null,null,null,null,null,0]
[null,null,null,null,21.003558743057219,null,null,null,null,null,null,null,null,null,20.996441256942781,null,null,null,null,null,null,null,null,null,null,null,null,null,null,null,21.003526728841326,null,null,null,null,null,null,null,null,null,20.996473271158674,null,null,null,0,null,null,null,null,null,null,null,null,null,0]
[]
[null,null,null,null,null,"To intialize:",null,null,null,null,"Ctrl+Shft+P",null,null,null,null,null,null,null,null,null,null,null,null,null,null,null,null,null,null,null,null,"To intialize:",null,null,null,null,"Ctrl+Shft+P"]
[null,null,null,null,null,"Automatic run:",null,null,null,null,"Ctrl+Shft+O",null,null,null,null,null,null,null,null,null,null,null,null,null,null,null,null,null,null,null,null,"Automatic run:",null,null,null,null,"Ctrl+Shft+O"]
[null,null,null,null,null,"Single run:",null,null,null,null,"Ctrl+Shft+U",null,null,null,null,null,null,null,null,null,null,null,null,null,null,null,null,null,null,null,null,"Single run:",null,null,null,null,"Ctrl+Shft+U"]